bitfinex/quotes_BTCUSD_20241002
["timestamp","ask_amount","ask_price","bid_price","bid_amount"]
[1727890634076,0.162591,61504.0,61499.0,0.162603]
[1727890634298,0.32899894,61503.0,61500.0,0.07395951]
[1727890634528,0.02472094,61516.0,61501.0,0.162597]
[1727890634529,0.06522297,61502.0,61501.0,0.162597]
[1727890634749,0.01851656,61502.0,61501.0,0.06509476]
[1727890634984,0.02549002,61507.0,61501.0,0.08809476]
[1727890635240,0.02549002,61507.0,61496.0,0.18453975]
[1727890635241,0.162609,61497.0,61496.0,0.18453975]
[1727890635464,0.01851716,61497.0,61496.0,0.18453975]
[1727890635684,0.01851716,61497.0,61496.0,0.20299373]
[1727890635685,0.162609,61497.0,61496.0,0.20299373]
[1727890635909,0.30906813,61507.0,61496.0,0.20299373]
[1727890635910,0.325178,61505.0,61496.0,0.20299373]
[1727890636136,0.06546541,61504.0,61503.0,0.162593]
[1727890636365,0.28002943,61504.0,61503.0,0.162593]
[1727890636624,0.09109191,61504.0,61503.0,0.1722388]
[1727890636811,0.04408035,61504.0,61503.0,0.28702358]
[1727890637274,0.09109264,61504.0,61503.0,0.28702358]
[1727890637499,0.06123013,61504.0,61503.0,0.28702358]
[1727890637737,0.04408035,61504.0,61503.0,0.28702358]
[1727890638176,0.018591,61504.0,61503.0,0.28702358]
[1727890638414,0.018591,61512.0,61503.0,0.12443058]
[1727890638658,0.01018308,61513.0,61512.0,0.162569]
[1727890638904,0.24430962,61514.0,61512.0,0.162569]
[1727890639170,0.24430962,61514.0,61513.0,0.162567]
[1727890639394,0.11000226,61514.0,61513.0,0.162567]
[1727890639645,0.09559893,61514.0,61513.0,0.162567]
[1727890639871,0.08541654,61514.0,61513.0,0.162567]
[1727890640103,0.08541654,61514.0,61513.0,0.17210433]
[1727890640382,0.08541654,61514.0,61513.0,0.29336269]
[1727890640651,0.08541654,61514.0,61513.0,0.39186269]
[1727890640915,0.0186621,61514.0,61513.0,0.49106269]
[1727890641415,0.0196621,61514.0,61513.0,0.49106269]
[1727890641689,0.001,61514.0,61513.0,0.6542494]
[1727890641908,0.26979155,61524.0,61523.0,0.16254]
[1727890642132,0.30578159,61524.0,61523.0,0.18554]
[1727890642348,0.28856912,61524.0,61523.0,0.18554]
[1727890642576,0.04425936,61524.0,61523.0,0.18554]
[1727890642803,0.04425936,61524.0,61523.0,0.30339377]
[1727890643064,0.04426121,61524.0,61523.0,0.30339377]
[1727890643507,0.01877928,61524.0,61523.0,0.30339377]
[1727890643729,0.01877928,61524.0,61523.0,0.31282267]
[1727890645588,0.01877928,61524.0,61523.0,0.12728267]
[1727890645828,0.01877928,61524.0,61523.0,0.36140619]
[1727890646073,0.001636,61527.0,61526.0,0.185532]
[1727890646307,0.001636,61527.0,61526.0,0.80719682]
[1727890646790,0.001636,61527.0,61526.0,0.63901011]
[1727890647011,0.001636,61527.0,61526.0,0.51822511]
[1727890647244,0.001636,61527.0,61526.0,0.97538631]
[1727890647463,0.24430962,61535.0,61528.0,0.186527]
[1727890647704,0.24430962,61535.0,61528.0,0.34871371]
[1727890647956,0.001836,61539.0,61538.0,0.190501]
[1727890648259,0.001836,61539.0,61538.0,0.462401]
[1727890648488,0.44430962,61550.0,61538.0,0.462401]
[1727890648489,0.44430962,61550.0,61543.0,0.340388]
[1727890648712,0.44430962,61550.0,61543.0,0.463388]
[1727890648967,0.44430962,61550.0,61543.0,0.464388]
[1727890649187,0.44430962,61550.0,61543.0,0.71470154]
[1727890649682,0.2,61550.0,61549.0,0.57605011]
[1727890649915,0.1,61550.0,61549.0,0.91463682]
[1727890650140,0.1,61550.0,61549.0,1.07642993]
[1727890650864,0.101,61550.0,61549.0,1.09957708]
[1727890652219,0.1,61550.0,61549.0,1.08557708]
[1727890652453,0.00164,61558.0,61557.0,0.262451]
[1727890652670,0.00164,61558.0,61557.0,0.73221582]
[1727890652903,0.00164,61558.0,61552.0,0.60850111]
[1727890653127,0.00164,61558.0,61557.0,0.162451]
[1727890653810,0.00264,61558.0,61557.0,0.46002911]
[1727890654033,0.00264,61558.0,61557.0,0.176451]
[1727890654265,0.02810594,61558.0,61557.0,0.199451]
[1727890654564,0.02810594,61558.0,61557.0,0.37169822]
[1727890655222,0.02710594,61558.0,61557.0,0.35769822]
[1727890655656,0.02710594,61558.0,61557.0,0.36169822]
[1727890656158,0.02710594,61558.0,61557.0,0.90446304]
[1727890656605,0.00264,61558.0,61557.0,0.90946304]
[1727890656838,0.00264,61558.0,61557.0,0.91046304]
[1727890657056,0.00164,61558.0,61557.0,1.00766304]
[1727890657291,0.00264,61558.0,61557.0,1.10159775]
[1727890658014,0.24430962,61564.0,61563.0,0.285435]
[1727890658245,0.0018,61567.0,61566.0,0.285427]
[1727890658497,0.0018,61567.0,61566.0,0.44861371]
[1727890658737,0.0018,61567.0,61566.0,0.57663961]
[1727890658960,0.0018,61567.0,61566.0,0.64667346]
[1727890659193,0.0018,61567.0,61566.0,0.93625157]
[1727890659419,0.00164,61572.0,61571.0,0.291414]
[1727890659677,0.00164,61572.0,61571.0,0.74142621]
[1727890659896,0.00164,61572.0,61571.0,0.90457856]
[1727890661061,0.00164,61572.0,61571.0,0.90903302]
[1727890661521,0.00164,61572.0,61571.0,0.90457856]
[1727890661971,0.00164,61572.0,61571.0,0.95198081]
[1727890662207,0.00264,61572.0,61571.0,1.09777243]
[1727890662427,0.00264,61572.0,61571.0,1.09331797]
[1727890662667,0.00164,61572.0,61571.0,1.08377243]
[1727890662880,0.00264,61572.0,61571.0,1.09777243]
[1727890663101,0.00264,61572.0,61571.0,1.09877243]
[1727890663322,0.00264,61572.0,61571.0,1.09777243]
[1727890663818,0.00164,61572.0,61571.0,1.07931797]
[1727890664065,0.00164,61572.0,61571.0,0.99147243]
[1727890664303,0.00164,61572.0,61571.0,0.98701797]
[1727890664551,0.00164,61572.0,61571.0,0.49200045]
[1727890665467,0.24450962,61579.0,61571.0,0.49200045]
[1727890665468,0.00092,61576.0,61575.0,0.162403]
[1727890665925,0.00092,61576.0,61575.0,0.185403]
[1727890666615,0.02637808,61576.0,61575.0,0.185403]
[1727890666835,0.02637808,61576.0,61575.0,0.186403]
[1727890667304,0.04522979,61576.0,61575.0,0.34958971]
[1727890667567,0.02637808,61576.0,61575.0,0.61777642]
[1727890667808,0.00092,61576.0,61575.0,0.61777642]
[1727890668484,0.00092,61576.0,61575.0,0.61177642]
[1727890668704,0.00492,61576.0,61575.0,0.61177642]
[1727890668945,0.00492,61576.0,61575.0,0.44858971]
[1727890669162,0.01983786,61576.0,61575.0,0.44858971]
[1727890669379,0.05013226,61576.0,61575.0,0.44858971]
[1727890669599,0.05113226,61576.0,61575.0,0.45558971]
[1727890670115,0.05113226,61576.0,61575.0,0.44858971]
[1727890670116,0.01983786,61576.0,61575.0,0.44858971]
[1727890670363,0.05012031,61576.0,61575.0,0.45358971]
[1727890670602,0.01983786,61576.0,61575.0,0.61677642]
[1727890671557,0.01983786,61576.0,61575.0,0.61177642]
[1727890671789,0.05016218,61576.0,61575.0,0.61177642]
[1727890672008,0.05116218,61576.0,61575.0,0.61877642]
[1727890672456,0.05016218,61576.0,61575.0,0.61177642]
[1727890672681,0.05116218,61576.0,61575.0,0.62177642]
[1727890672924,0.06133236,61576.0,61575.0,0.62177642]
[1727890673149,0.05016218,61576.0,61575.0,0.61177642]
[1727890673392,0.06033224,61576.0,61575.0,0.61177642]
[1727890673616,0.06033224,61576.0,61575.0,0.62177642]
[1727890673617,0.05116218,61576.0,61575.0,0.62177642]
[1727890673854,0.05116218,61576.0,61575.0,0.95368604]
[1727890674110,0.02083786,61576.0,61575.0,0.70937642]
[1727890674615,0.02090043,61576.0,61575.0,0.71037642]
[1727890674849,0.01990043,61576.0,61575.0,0.70037642]
[1727890675081,0.02090043,61576.0,61575.0,0.71337642]
[1727890675345,0.05133161,61576.0,61575.0,0.71337642]
[1727890675588,0.05033161,61576.0,61575.0,0.70037642]
[1727890675827,0.05133161,61576.0,61575.0,0.71437642]
[1727890676083,0.05133161,61576.0,61575.0,0.71337642]
[1727890676336,0.05033161,61576.0,61575.0,0.70119542]
[1727890676557,0.05033161,61576.0,61575.0,0.70019542]
[1727890676783,0.06150011,61576.0,61575.0,0.71119542]
[1727890677448,0.07876279,61576.0,61575.0,0.71119542]
[1727890678129,0.0789312,61576.0,61575.0,0.71119542]
[1727890678348,0.07893016,61576.0,61575.0,0.71119542]
[1727890678567,0.07793016,61576.0,61575.0,0.70019542]
[1727890678786,0.07793016,61576.0,61575.0,0.71419542]
[1727890679278,0.07793016,61576.0,61575.0,0.70019542]
[1727890679523,0.07793016,61576.0,61575.0,0.71419542]
[1727890679746,0.07793016,61576.0,61575.0,0.71519542]
[1727890680080,0.07793016,61576.0,61575.0,0.71419542]
[1727890680531,0.07793016,61576.0,61575.0,0.70919542]
[1727890680532,0.09823535,61576.0,61575.0,0.70919542]
[1727890680933,0.07793016,61576.0,61575.0,0.62659542]
[1727890681131,0.07793016,61576.0,61575.0,0.34040871]
[1727890681132,0.13063136,61576.0,61575.0,0.34040871]
[1727890681339,0.14080141,61576.0,61575.0,0.17800571]
[1727890681554,0.31133737,61576.0,61575.0,0.014819]
[1727890682163,0.31133737,61576.0,61575.0,0.000819]
[1727890682375,0.31133737,61576.0,61575.0,0.007819]
[1727890682580,0.31133737,61576.0,61564.0,0.24430962]
[1727890682581,0.324818,61573.0,61564.0,0.24430962]
[1727890682786,0.324818,61573.0,61565.0,0.21934636]
[1727890682787,0.16242,61569.0,61565.0,0.21934636]
[1727890683111,0.14801737,61568.0,61567.0,0.023]
[1727890683533,0.14801737,61568.0,61566.0,0.023]
[1727890683674,0.14801737,61567.0,61566.0,0.023]
[1727890683895,0.14801737,61567.0,61566.0,0.1203958]
[1727890684105,0.14801737,61567.0,61560.0,0.162442]
[1727890684106,0.162431,61565.0,61560.0,0.162442]
[1727890684322,0.02489346,61562.0,61559.0,0.24430962]
[1727890684533,0.12261977,61561.0,61560.0,0.08941196]
[1727890684741,0.1480273,61561.0,61560.0,0.25185496]
[1727890684946,0.1480273,61561.0,61560.0,0.08941196]
[1727890685172,0.1480273,61561.0,61549.0,0.24512662]
[1727890685446,0.1480273,61561.0,61557.0,0.162449]
[1727890685447,0.02486637,61559.0,61557.0,0.162449]
[1727890685653,0.19991659,61558.0,61557.0,0.162449]
[1727890685871,0.17505022,61558.0,61557.0,0.162449]
[1727890686285,0.19095936,61558.0,61557.0,0.32563571]
[1727890686510,0.12430975,61558.0,61557.0,0.58435708]
[1727890686757,0.0764396,61558.0,61557.0,0.68915708]
[1727890687217,0.0764396,61558.0,61557.0,0.69415708]
[1727890687434,0.06626467,61558.0,61557.0,0.69515708]
[1727890687654,0.06626467,61558.0,61557.0,0.76644353]
[1727890687655,0.04848484,61558.0,61557.0,0.76644353]
[1727890687906,0.03587944,61558.0,61557.0,0.82390481]
[1727890688112,0.03587944,61558.0,61557.0,0.70442739]
[1727890688342,0.26021305,61572.0,61571.0,0.262414]
[1727890688571,0.26021305,61572.0,61571.0,0.85637212]
[1727890688572,0.30932077,61572.0,61571.0,0.85637212]
[1727890688781,0.06501115,61572.0,61571.0,0.85637212]
[1727890689223,0.01837444,61572.0,61571.0,0.90473892]
[1727890689425,0.02037444,61572.0,61571.0,0.90573892]
[1727890689626,0.02037444,61572.0,61571.0,0.85737212]
[1727890690053,0.01837444,61572.0,61571.0,0.90576874]
[1727890690265,0.01937444,61572.0,61571.0,0.90877224]
[1727890690505,0.01937444,61572.0,61571.0,0.93292233]
[1727890691146,0.01904266,61572.0,61571.0,0.93392233]
[1727890691365,0.01904266,61572.0,61571.0,0.95710573]
[1727890691575,0.01904266,61572.0,61571.0,0.86037212]
[1727890691787,0.03629087,61572.0,61571.0,0.90885758]
[1727890692214,0.03529087,61572.0,61571.0,0.62127947]
[1727890692432,0.00092,61576.0,61571.0,0.62127947]
[1727890692433,0.00092,61576.0,61571.0,0.77605812]
[1727890692645,0.00092,61576.0,61575.0,0.57550673]
[1727890692868,0.00092,61576.0,61575.0,0.45458971]
[1727890693380,0.00092,61576.0,61575.0,0.60018033]
[1727890693609,0.00092,61576.0,61575.0,0.45458971]
[1727890693818,0.00092,61576.0,61575.0,0.61331108]
[1727890694025,0.00192,61576.0,61575.0,0.61331108]
[1727890694456,0.00192,61576.0,61575.0,0.61231108]
[1727890695637,0.00092,61576.0,61575.0,0.61231108]
[1727890695849,0.00192,61576.0,61575.0,0.62331108]
[1727890696020,0.0002,61579.0,61578.0,0.168395]
[1727890696255,0.001638,61586.0,61585.0,0.167377]
[1727890696462,0.001638,61586.0,61585.0,0.45356371]
[1727890696665,0.001638,61586.0,61585.0,0.45456371]
[1727890696866,0.001638,61586.0,61585.0,0.498888]
[1727890697229,0.001638,61586.0,61585.0,0.62021524]
[1727890697428,0.002638,61586.0,61585.0,0.59593514]
[1727890697694,0.002638,61586.0,61585.0,0.498888]
[1727890697900,0.002638,61586.0,61585.0,0.59593538]
[1727890698105,0.002638,61586.0,61585.0,0.59593522]
[1727890698552,0.002638,61586.0,61585.0,0.498888]
[1727890698765,0.002638,61586.0,61585.0,0.59592202]
[1727890698983,0.002638,61586.0,61585.0,0.498888]
[1727890699209,0.002638,61586.0,61585.0,0.5949224]
[1727890699466,0.001638,61586.0,61585.0,0.54140378]
[1727890699674,0.001638,61586.0,61585.0,0.474888]
[1727890699884,0.001638,61586.0,61585.0,0.52840663]
[1727890700096,0.001638,61586.0,61585.0,0.474888]
[1727890700308,0.001638,61586.0,61585.0,0.469888]
[1727890700523,0.001638,61586.0,61585.0,0.477888]
[1727890701034,0.001638,61586.0,61585.0,0.492888]
[1727890701443,0.001638,61586.0,61585.0,0.49712837]
[1727890702541,0.001638,61586.0,61585.0,0.50212837]
[1727890704446,0.001638,61586.0,61585.0,0.50712837]
[1727890704680,0.001638,61586.0,61585.0,0.50212837]
[1727890706226,0.001638,61586.0,61585.0,0.21594166]
[1727890706449,0.001638,61586.0,61585.0,0.21170129]
[1727890706876,0.001638,61586.0,61585.0,0.37313514]
[1727890707089,0.001638,61586.0,61585.0,0.379888]
[1727890707505,0.001638,61586.0,61585.0,0.392888]
[1727890708888,0.001638,61586.0,61585.0,0.400888]
[1727890709511,0.02709122,61586.0,61585.0,0.400888]
[1727890710388,0.02709122,61586.0,61585.0,0.23770129]
[1727890710609,0.02709122,61586.0,61585.0,0.05232429]
[1727890710818,0.02709122,61586.0,61585.0,0.008]
[1727890711047,0.20818067,61586.0,61585.0,0.008]
[1727890711449,0.04580667,61586.0,61585.0,0.008]
[1727890712076,0.04580667,61586.0,61581.0,0.162386]
[1727890712077,0.162381,61584.0,61579.0,0.24430962]
[1727890712324,0.03109122,61586.0,61580.0,0.10231015]
[1727890712509,0.03109122,61586.0,61583.0,0.023]
[1727890712510,0.01896105,61585.0,61583.0,0.023]
[1727890712728,0.01896105,61584.0,61583.0,0.023]
[1727890712937,0.02709122,61586.0,61583.0,0.023]
[1727890713141,0.02195974,61584.0,61583.0,0.162382]
[1727890713347,0.02195974,61584.0,61583.0,0.185382]
[1727890713555,0.01895974,61584.0,61583.0,0.30362018]
[1727890713972,0.02695974,61584.0,61583.0,0.30462018]
[1727890714626,0.008,61584.0,61583.0,0.46780689]
[1727890715256,0.001638,61586.0,61585.0,0.185377]
[1727890715469,0.02061773,61586.0,61585.0,0.3440079]
[1727890715684,0.02061773,61586.0,61585.0,0.1816309]
[1727890715895,0.04039892,61586.0,61585.0,0.185377]
[1727890716159,0.08797517,61586.0,61585.0,0.185377]
[1727890716621,0.09606118,61586.0,61585.0,0.186377]
[1727890716836,0.07884805,61586.0,61585.0,0.186377]
[1727890717058,0.009638,61586.0,61585.0,0.1075911]
[1727890717270,0.22803621,61586.0,61585.0,0.0845911]
[1727890717493,0.30067583,61586.0,61585.0,0.001]
[1727890717709,0.13830183,61586.0,61585.0,0.163377]
[1727890717941,0.13830183,61586.0,61585.0,0.26192176]
[1727890718148,0.14652664,61586.0,61585.0,0.26192176]
[1727890718363,0.11701411,61586.0,61585.0,0.26192176]
[1727890720754,0.11701411,61586.0,61585.0,0.09954476]
[1727890721203,0.11701411,61586.0,61585.0,0.26192176]
[1727890721446,0.11701411,61586.0,61585.0,0.186377]
[1727890721908,0.11701411,61586.0,61585.0,0.163377]
[1727890722115,0.14247008,61586.0,61585.0,0.186377]
[1727890722354,0.33646378,61586.0,61585.0,0.10791582]
[1727890722553,0.17408978,61586.0,61585.0,0.11695238]
[1727890722802,0.33646378,61586.0,61585.0,0.03303656]
[1727890723486,0.31100781,61586.0,61585.0,0.001]
[1727890723746,0.1222601,61586.0,61585.0,0.0751159]
[1727890723946,0.2846341,61586.0,61585.0,0.0751159]
[1727890724166,0.32086133,61586.0,61585.0,0.0751159]
[1727890726131,0.32086133,61586.0,61585.0,0.001]
[1727890726336,0.32086133,61586.0,61585.0,0.03303656]
[1727890726566,0.34631857,61586.0,61585.0,0.03303656]
[1727890727208,0.3462138,61586.0,61585.0,0.03303656]
[1727890727434,0.37109852,61586.0,61585.0,0.03303656]
[1727890727653,0.37110869,61586.0,61585.0,0.08505662]
[1727890727868,0.37110668,61586.0,61585.0,0.08505662]
[1727890729374,0.20873268,61586.0,61585.0,0.24743362]
[1727890729614,0.17571147,61586.0,61585.0,0.24743362]
[1727890729821,0.17571147,61586.0,61585.0,0.25068085]
[1727890730282,0.17571147,61586.0,61585.0,0.24743362]
[1727890730518,0.13344394,61586.0,61585.0,0.43618052]
[1727890730744,0.009638,61586.0,61585.0,0.43618052]
[1727890730963,0.02881265,61586.0,61585.0,0.43618052]
[1727890731440,0.02881265,61586.0,61585.0,0.69936723]
[1727890731740,0.009638,61586.0,61585.0,0.69936723]
[1727890731978,0.001638,61586.0,61585.0,0.69836723]
[1727890732214,0.003638,61586.0,61585.0,0.69836723]
[1727890732468,0.003638,61586.0,61585.0,0.74690689]
[1727890732720,0.001638,61586.0,61585.0,0.74690689]
[1727890732955,0.001638,61586.0,61585.0,0.75109285]
[1727890733237,0.001638,61586.0,61585.0,0.71355319]
[1727890733238,0.002638,61586.0,61585.0,0.71355319]
[1727890733731,0.001638,61586.0,61585.0,0.70255319]
[1727890733961,0.002638,61586.0,61585.0,0.71055319]
[1727890734220,0.002638,61586.0,61585.0,0.75909285]
[1727890734453,0.002638,61586.0,61585.0,0.76109285]
[1727890734692,0.002638,61586.0,61585.0,0.71055319]
[1727890735395,0.001638,61586.0,61585.0,0.70255319]
[1727890735627,0.002638,61586.0,61585.0,0.78636268]
[1727890736093,0.001638,61586.0,61585.0,0.70255319]
[1727890736323,0.002638,61586.0,61585.0,0.78636268]
[1727890736608,0.002638,61586.0,61585.0,0.71355319]
[1727890736840,0.002638,61586.0,61585.0,0.79365319]
[1727890738997,0.002638,61586.0,61585.0,0.89089118]
[1727890739243,0.002638,61586.0,61585.0,0.79365319]
[1727890739493,0.002638,61586.0,61585.0,0.89089118]
[1727890739737,0.002638,61586.0,61585.0,0.86658044]
[1727890739991,0.002638,61586.0,61585.0,0.86158011]
[1727890740505,0.002638,61586.0,61585.0,0.78865319]
[1727890740753,0.002638,61586.0,61585.0,0.79365319]
[1727890741256,0.002638,61586.0,61585.0,0.86858011]
[1727890741775,0.002638,61586.0,61585.0,0.86657373]
[1727890742035,0.002638,61586.0,61585.0,0.79565319]
[1727890742269,0.002638,61586.0,61585.0,0.79365319]
[1727890742504,0.002638,61586.0,61585.0,1.03996281]
[1727890742774,0.00164,61589.0,61585.0,1.03996281]
[1727890742775,0.00164,61589.0,61588.0,0.290369]
[1727890743010,0.00164,61589.0,61588.0,0.60260177]
[1727890743248,0.00164,61589.0,61588.0,0.46315356]
[1727890743746,0.001642,61590.0,61589.0,0.4811129]
[1727890743980,0.001642,61590.0,61589.0,1.02101619]
[1727890744234,0.001642,61590.0,61589.0,1.03060322]
[1727890744489,0.00164,61591.0,61590.0,0.292364]
[1727890744768,0.00164,61591.0,61590.0,0.45555071]
[1727890744997,0.00164,61591.0,61590.0,0.46512692]
[1727890745216,0.00164,61591.0,61590.0,0.51714698]
[1727890745900,0.00164,61591.0,61590.0,0.53114698]
[1727890748940,0.00164,61591.0,61590.0,0.65250388]
[1727890750753,0.00164,61591.0,61590.0,0.53114698]
[1727890751404,0.00164,61591.0,61590.0,0.62818196]
[1727890751619,0.00164,61591.0,61590.0,0.61418196]
[1727890751839,0.00164,61591.0,61590.0,0.63646066]
[1727890752060,0.00164,61591.0,61590.0,0.51414698]
[1727890752524,0.00164,61591.0,61590.0,0.51914698]
[1727890752959,0.00164,61591.0,61590.0,0.56566818]
[1727890753233,0.00164,61591.0,61590.0,0.51514698]
[1727890753497,0.00164,61591.0,61590.0,0.56366279]
[1727890754352,0.00164,61591.0,61590.0,0.51514698]
[1727890754806,0.00264,61591.0,61590.0,0.52914698]
[1727890755444,0.00164,61591.0,61590.0,0.51514698]
[1727890755871,0.00264,61591.0,61590.0,0.52914698]
[1727890756521,0.00264,61591.0,61590.0,0.52414698]
[1727890757647,0.00264,61591.0,61590.0,0.52914698]
[1727890758123,0.00164,61591.0,61590.0,0.51514698]
[1727890758349,0.00264,61591.0,61590.0,0.52714698]
[1727890758566,0.00264,61591.0,61590.0,0.59990207]
[1727890759182,0.00164,61591.0,61590.0,0.58790207]
[1727890759400,0.00264,61591.0,61590.0,0.52914698]
[1727890759618,0.00264,61591.0,61590.0,0.60190461]
[1727890759848,0.00164,61591.0,61590.0,0.58790461]
[1727890760054,0.00164,61591.0,61590.0,0.56365201]
[1727890760533,0.00164,61591.0,61590.0,0.4586543]
[1727890760761,0.00164,61591.0,61590.0,0.41014698]
[1727890760974,0.02152968,61591.0,61590.0,0.41014698]
[1727890761193,0.02152968,61591.0,61590.0,0.42414698]
[1727890761194,0.0479804,61591.0,61590.0,0.42414698]
[1727890761621,0.07981026,61591.0,61590.0,0.40114698]
[1727890761845,0.07881026,61591.0,61590.0,0.48714698]
[1727890762106,0.07981026,61591.0,61590.0,0.50114698]
[1727890762343,0.07981026,61591.0,61590.0,0.23796027]
[1727890762344,0.10013894,61591.0,61590.0,0.23796027]
[1727890762584,0.29664208,61591.0,61590.0,0.06159627]
[1727890762823,0.30680994,61591.0,61590.0,0.00957621]
[1727890763063,0.33986779,61591.0,61590.0,0.01657621]
[1727890763304,0.33986779,61591.0,61590.0,0.007]
[1727890763305,0.33986778,61591.0,61590.0,0.007]
[1727890763510,0.33954525,61591.0,61590.0,0.01670621]
[1727890763721,0.33954525,61591.0,61590.0,0.007]
[1727890763945,0.31462712,61591.0,61590.0,0.01670621]
[1727890764155,0.31462712,61591.0,61590.0,0.02507152]
[1727890764156,0.30649166,61591.0,61590.0,0.02507152]
[1727890764364,0.30649166,61591.0,61590.0,0.00970621]
[1727890764577,0.162368,61589.0,61587.0,0.023]
[1727890764789,0.11000329,61588.0,61586.0,0.001638]
[1727890765002,0.30469091,61587.0,61586.0,0.001638]
[1727890765227,0.32299731,61587.0,61586.0,0.001638]
[1727890765448,0.32299771,61587.0,61586.0,0.001638]
[1727890765660,0.34845499,61587.0,61586.0,0.001638]
[1727890766102,0.32299771,61587.0,61586.0,0.001638]
[1727890766334,0.33771179,61587.0,61586.0,0.04247096]
[1727890766588,0.33771024,61587.0,61586.0,0.04247096]
[1727890766808,0.162371,61587.0,61586.0,0.05222045]
[1727890767038,0.337524,61587.0,61586.0,0.05222045]
[1727890767556,0.31264036,61587.0,61586.0,0.05222045]
[1727890767813,0.343524,61587.0,61586.0,0.05322045]
[1727890768294,0.31864036,61587.0,61586.0,0.04347096]
[1727890768532,0.30450378,61587.0,61586.0,0.04247096]
[1727890768766,0.32996048,61587.0,61586.0,0.05222045]
[1727890769235,0.13931118,61587.0,61586.0,0.21459445]
[1727890769464,0.11122976,61587.0,61586.0,0.05222045]
[1727890769974,0.11122976,61587.0,61586.0,0.23759445]
[1727890769979,0.0808851,61587.0,61586.0,0.4022109]
[1727890770226,0.004,61587.0,61586.0,0.50078116]
[1727890770762,0.00164,61591.0,61590.0,0.262364]
[1727890771038,0.00164,61591.0,61590.0,0.80373096]
[1727890771313,0.00164,61591.0,61590.0,0.81019053]
[1727890773009,0.00164,61591.0,61590.0,0.89119053]
[1727890773774,0.00164,61591.0,61590.0,0.62400382]
[1727890774013,0.00164,61591.0,61590.0,1.04450015]
[1727890774014,0.00264,61591.0,61590.0,1.04450015]
[1727890774291,0.00264,61591.0,61590.0,0.78919053]
[1727890774292,0.00164,61591.0,61590.0,0.78919053]
[1727890774551,0.00164,61591.0,61590.0,0.78719053]
[1727890774788,0.00164,61591.0,61590.0,0.79519053]
[1727890775031,0.00164,61591.0,61590.0,0.82019053]
[1727890775271,0.00164,61591.0,61590.0,0.81219053]
[1727890775497,0.00264,61591.0,61590.0,0.82519053]
[1727890775972,0.00264,61591.0,61590.0,0.8980159]
[1727890776243,0.00264,61591.0,61590.0,0.83019053]
[1727890776486,0.00264,61591.0,61590.0,0.91119053]
[1727890776760,0.00164,61598.0,61597.0,0.4790919]
[1727890777014,0.00164,61598.0,61597.0,0.64227861]
[1727890777260,0.00164,61598.0,61597.0,0.65390911]
[1727890778033,0.00164,61598.0,61597.0,0.72474739]
[1727890778301,0.00264,61598.0,61597.0,0.66390911]
[1727890778559,0.00264,61598.0,61597.0,0.77757655]
[1727890778847,0.00264,61598.0,61597.0,0.75329809]
[1727890779060,0.00264,61598.0,61597.0,0.70474207]
[1727890779317,0.00264,61598.0,61597.0,0.70898631]
[1727890780681,0.00264,61598.0,61597.0,0.70398631]
[1727890780904,0.00264,61598.0,61597.0,0.70898631]
[1727890781993,0.02808652,61598.0,61597.0,0.70898631]
[1727890782213,0.00264,61598.0,61597.0,0.70898631]
[1727890782478,0.00264,61598.0,61597.0,0.70398631]
[1727890787892,0.00264,61598.0,61597.0,0.95029593]
[1727890788119,0.00264,61598.0,61597.0,0.70598631]
[1727890789716,0.00264,61598.0,61597.0,0.70398631]
[1727890789951,0.00264,61598.0,61597.0,0.95529593]
[1727890790181,0.001642,61601.0,61600.0,0.287337]
[1727890790425,0.001642,61601.0,61600.0,0.46853405]
[1727890790653,0.001642,61618.0,61609.0,0.002]
[1727890790887,0.001642,61618.0,61609.0,0.63724661]
[1727890791107,0.001642,61618.0,61609.0,0.66757812]
[1727890791371,0.001642,61618.0,61609.0,0.67724532]
[1727890793644,0.001642,61618.0,61609.0,0.69124532]
[1727890794113,0.001642,61618.0,61609.0,0.67724532]
[1727890795295,0.001642,61618.0,61609.0,0.68150618]
[1727890795533,0.001642,61618.0,61609.0,0.69150618]
[1727890796508,0.001642,61618.0,61609.0,0.68150618]
[1727890796990,0.001642,61618.0,61609.0,0.69450618]
[1727890797238,0.001642,61618.0,61609.0,0.75790618]
[1727890797759,0.001642,61618.0,61609.0,0.75990618]
[1727890798198,0.0172928,61610.0,61609.0,0.75990618]
[1727890798444,0.0172928,61610.0,61609.0,0.75790618]
[1727890798929,0.0172928,61610.0,61609.0,0.77190618]
[1727890799407,0.0172928,61610.0,61609.0,0.75790618]
[1727890799654,0.0172928,61610.0,61609.0,0.77190618]
[1727890800710,0.0172928,61610.0,61609.0,0.75790618]
[1727890800920,0.03769898,61610.0,61609.0,0.75790618]
[1727890801158,0.0172928,61610.0,61609.0,0.75990618]
[1727890801660,0.0172928,61610.0,61609.0,0.68150618]
[1727890802146,0.0172928,61610.0,61609.0,0.69550618]
[1727890802401,0.03769598,61610.0,61609.0,0.69550618]
[1727890802636,0.03769598,61610.0,61609.0,0.68150618]
[1727890802893,0.0172928,61610.0,61609.0,0.68150618]
[1727890803132,0.0172928,61610.0,61609.0,0.69050618]
[1727890803401,0.0172928,61610.0,61609.0,0.69250618]
[1727890803652,0.0172928,61610.0,61609.0,0.68150618]
[1727890803942,0.001642,61618.0,61614.0,0.005]
[1727890804180,0.001642,61618.0,61617.0,0.4740389]
[1727890804460,0.001642,61618.0,61617.0,0.48349629]
[1727890804935,0.001642,61618.0,61617.0,0.49049629]
[1727890805755,0.001642,61618.0,61617.0,0.49472508]
[1727890806463,0.001642,61618.0,61617.0,0.48972508]
[1727890806724,0.001642,61618.0,61617.0,0.50172508]
[1727890807466,0.001642,61618.0,61617.0,0.50372508]
[1727890808236,0.001642,61618.0,61617.0,0.49672508]
[1727890808488,0.001642,61618.0,61617.0,0.48772508]
[1727890808749,0.001642,61618.0,61617.0,0.50172508]
[1727890809044,0.001642,61618.0,61617.0,0.49672508]
[1727890809309,0.001642,61618.0,61617.0,0.48772508]
[1727890809577,0.001642,61618.0,61617.0,0.50372508]
[1727890809816,0.001642,61618.0,61617.0,0.48772508]
[1727890810078,0.001642,61618.0,61617.0,0.50172508]
[1727890810332,0.001642,61618.0,61617.0,0.49672508]
[1727890810837,0.02208225,61618.0,61617.0,0.49672508]
[1727890811335,0.02208225,61618.0,61617.0,0.48899785]
[1727890811616,0.02208225,61618.0,61617.0,0.20758235]
[1727890811617,0.05482431,61618.0,61617.0,0.20758235]
[1727890811862,0.05482431,61618.0,61617.0,0.22158235]
[1727890812381,0.05482431,61618.0,61617.0,0.39632925]
[1727890812627,0.05482431,61618.0,61617.0,0.40232925]